[Event "36th Zalakaros Festival 2017"]
[Site "Zalakaros"]
[Date "2017.05.22"]
[Round "5"]
[White "Csiki, Endre"]
[Black "Paszewski, Mateusz"]
[Result "1/2-1/2"]
[ECO "E32"]
[WhiteElo "2200"]
[BlackElo "2327"]
[Annotator "NA"]
[PlyCount "62"]
[EventDate "2017.??.??"]
[EventType "swiss"]
[EventCountry "HUN"]
[SourceTitle "playchess.com"]
[Source "ChessBase"]
[SourceQuality "1"]
[TimeControl "40/5400+30:1800+30"]

1. d4 {[%emt 0:00:02]} Nf6 {[%emt 0:01:18]} 2. c4 {[%emt 0:00:09]} e6 {[%emt 0:00:02]} 3. Nc3 {[%emt 0:00:07]} Bb4 {[%emt 0:00:04]} 4. Qc2 {[%emt 0:00:06]} O-O {[%emt 0:00:07]} 5. a3 {[%emt 0:00:06]} Bxc3+ {[%emt 0:03:31]} 6. Qxc3 {[%emt 0:00:11]} d5 {[%emt 0:00:02]} 7. Nf3 {[%emt 0:01:47]} dxc4 {[%emt 0:00:16]} 8. Qxc4 {[%emt 0:00:22]} b6 {[%emt 0:00:01]} 9. Bg5 {[%emt 0:03:11]} Ba6 {[%emt 0:00:18]} 10. Qa4 {[%emt 0:00:13]} Qd7 {[%emt 0:05:27]} 11. Qc2 {[%emt 0:01:33]} c5 {[%emt 0:00:35]} 12. dxc5 {[%emt 0:07:52]} Rc8 {[%emt 0:00:59]} 13. Rd1 {[%emt 0:04:40]} Qe7 {[%emt 0:09:35]} 14. Qd2 $11 {[%emt 0:12:27]} Qxc5 {[%emt 0:07:52]} 15. b4 {[%emt 0:18:10]} Qf5 {[%emt 0:05:57]} 16. Nd4 {[%emt 0:18:03]} Qg6 {[%emt 0:06:16]} 17. Bxf6 {[%emt 0:01:38]} Qxf6 {[%emt 0:00:57]} 18. e3 {[%emt 0:03:09]} Bxf1 {[%emt 0:06:24]} 19. Rxf1 {[%emt 0:00:46]} Nc6 {[%emt 0:00:05]} 20. Nxc6 Rxc6 {[%emt 0:00:01]} 21. Ke2 {[%emt 0:01:29]} Rc3 {[%emt 0:03:25]} 22. a4 {[%emt 0:03:43]} Rb3 {[%emt 0:18:21]} 23. Rb1 {[%emt 0:01:59]} Ra3 {[%emt 0:00:01]} 24. Qc2 {[%emt 0:01:54]} Qe5 {[%emt 0:00:41]} 25. Rfc1 {[%emt 0:02:01]} h6 {[%emt 0:00:08]} 26. h3 {[%emt 0:00:24]} Qd5 {[%emt 0:11:50]} 27. Kf1 {[%emt 0:03:27]} Ra2 {[%emt 0:03:27]} 28. Rb2 {[%emt 0:00:35]} Rxb2 {[%emt 0:00:05]} 29. Qxb2 {[%emt 0:00:06]} Rd8 {[%emt 0:01:43]} 30. Kg1 {[%emt 0:02:08]} Qe4 {[%emt 0:05:25]} 31. Qc3 {[%emt 0:05:14]} Qd5 {[%emt 0:01:36]} 1/2-1/2

[Event "36th Zalakaros Festival 2017"]
[Site "Zalakaros"]
[Date "2017.05.24"]
[Round "7"]
[White "Raja Harshit"]
[Black "Varga, Klara"]
[Result "1-0"]
[ECO "C15"]
[WhiteElo "2334"]
[BlackElo "2240"]
[Annotator "NA"]
[PlyCount "81"]
[EventDate "2017.??.??"]
[EventType "swiss"]
[EventCountry "HUN"]
[SourceTitle "playchess.com"]
[Source "ChessBase"]
[SourceQuality "1"]
[TimeControl "40/5400+30:1800+30"]

1. e4 {[%emt 0:00:05]} e6 {[%emt 0:07:06]} 2. d4 {[%emt 0:00:12]} d5 {[%emt 0:00:04]} 3. Nc3 {[%emt 0:00:15]} Bb4 {[%emt 0:00:06]} 4. Nge2 {[%emt 0:00:16]} c5 {[%emt 0:04:54]} 5. exd5 {[%emt 0:03:36]} Qxd5 {[%emt 0:02:11]} 6. a3 {[%emt 0:09:39]} Bxc3+ {[%emt 0:01:19]} 7. Nxc3 {[%emt 0:00:19]} Qxd4 {[%emt 0:01:59]} 8. Qxd4 {[%emt 0:12:17]} cxd4 {[%emt 0:00:34]} 9. Nb5 {[%emt 0:00:05]} Na6 {[%emt 0:00:36]} 10. Nxd4 {[%emt 0:00:45]} Nc7 {[%emt 0:02:18]} 11. Bf4 {[%emt 0:02:54]} Nd5 {[%emt 0:00:10]} 12. Bd6 {[%emt 0:00:05]} Bd7 {[%emt 0:03:49]} 13. c4 {[%emt 0:02:56]} Nb6 {[%emt 0:01:49]} 14. a4 {[%emt 0:08:10]} Rc8 $16 {[%emt 0:12:00]} 15. b3 {[%emt 0:01:05]} Nf6 {[%emt 0:01:00]} 16. f3 {[%emt 0:07:12]} Kd8 {[%emt 0:04:32]} 17. Kf2 {[%emt 0:05:49]} Ne8 {[%emt 0:00:12]} 18. Bb4 {[%emt 0:00:44]} e5 {[%emt 0:00:11]} 19. Nb5 {[%emt 0:01:19]} Bxb5 {[%emt 0:08:39]} 20. axb5 {[%emt 0:00:18]} Ra8 {[%emt 0:00:09]} 21. c5 {[%emt 0:01:15]} Nd7 {[%emt 0:01:26]} 22. Bc4 {[%emt 0:00:20]} Nc7 {[%emt 0:02:51]} 23. Rhd1 {[%emt 0:04:41]} Kc8 {[%emt 0:02:33]} 24. Rac1 {[%emt 0:11:56]} f6 {[%emt 0:03:30]} 25. Rd2 {[%emt 0:09:09]} b6 {[%emt 0:03:11]} 26. c6 {[%emt 0:03:03]} Nb8 {[%emt 0:00:46]} 27. Be7 {[%emt 0:06:14]} a6 {[%emt 0:05:37]} 28. bxa6 {[%emt 0:00:06]} Re8 {[%emt 0:04:17]} 29. Bd6 {[%emt 0:03:41]} Nbxa6 {[%emt 0:03:44]} 30. b4 {[%emt 0:03:21]} b5 {[%emt 0:00:49]} 31. Bb3 {[%emt 0:01:36]} Nb8 {[%emt 0:00:45]} 32. Bf7 {[%emt 0:02:04]} Rd8 {[%emt 0:00:24]} 33. Be6+ {[%emt 0:00:30]} Nxe6 {[%emt 0:01:13]} 34. c7 {[%emt 0:00:01]} Rxd6 {[%emt 0:03:03]} 35. cxb8=Q+ {[%emt 0:00:09]} Kxb8 {[%emt 0:00:34]} 36. Rxd6 {[%emt 0:00:01]} Ra2+ {[%emt 0:00:17]} 37. Kf1 {[%emt 0:00:06]} Nf4 {[%emt 0:04:30]} 38. Rd8+ {[%emt 0:00:04]} Kb7 {[%emt 0:00:10]} 39. Rd7+ {[%emt 0:00:04]} Kb8 {[%emt 0:00:36]} 40. Rxg7 {[%emt 0:00:00]} Nd3 {[%emt 0:00:44]} 41. Rd1 {[%emt 0:01:45]} 1-0

[Event "36th Zalakaros Festival 2017"]
[Site "Zalakaros"]
[Date "2017.05.24"]
[Round "7"]
[White "Szabo, Marton Mihaly"]
[Black "Terbe, Julianna"]
[Result "1-0"]
[ECO "B30"]
[WhiteElo "2298"]
[BlackElo "2258"]
[Annotator "NA"]
[PlyCount "55"]
[EventDate "2017.??.??"]
[EventType "swiss"]
[EventCountry "HUN"]
[SourceTitle "playchess.com"]
[Source "ChessBase"]
[SourceQuality "1"]
[TimeControl "40/5400+30:1800+30"]

1. e4 {[%emt 0:00:04]} c5 {[%emt 0:00:38]} 2. Nf3 {[%emt 0:00:30]} Nc6 {[%emt 0:00:06]} 3. Bb5 {[%emt 0:00:13]} Qc7 {[%emt 0:00:09]} 4. O-O {[%emt 0:00:25]} a6 {[%emt 0:00:04]} 5. Bxc6 $14 {[%emt 0:00:38]} dxc6 {[%emt 0:00:07]} 6. d4 {[%emt 0:00:41]} cxd4 {[%emt 0:00:08]} 7. Qxd4 {[%emt 0:00:50]} c5 {[%emt 0:00:06]} 8. Qe3 {[%emt 0:01:18]} Bg4 {[%emt 0:01:51]} 9. c4 {[%emt 0:02:13]} e6 {[%emt 0:03:11]} 10. Nc3 {[%emt 0:02:35]} Ne7 {[%emt 0:02:09]} 11. Ne1 {[%emt 0:09:16]} f6 {[%emt 0:07:55]} 12. h3 {[%emt 0:01:35]} Bh5 {[%emt 0:00:09]} 13. Nd3 {[%emt 0:03:06]} b6 {[%emt 0:01:09]} 14. e5 {[%emt 0:06:55]} f5 {[%emt 0:03:35]} 15. Qg3 {[%emt 0:23:38]} h6 {[%emt 0:09:05]} 16. h4 {[%emt 0:02:18]} Rd8 {[%emt 0:06:10]} 17. Re1 {[%emt 0:05:27]} Bf7 {[%emt 0:11:27]} 18. Nf4 {[%emt 0:03:42]} g6 {[%emt 0:23:43]} 19. Ncd5 {[%emt 0:14:07]} exd5 {[%emt 0:01:16]} 20. e6 {[%emt 0:00:34]} Bxe6 {[%emt 0:07:12]} 21. Rxe6 {[%emt 0:02:06]} Rg8 {[%emt 0:10:01]} 22. cxd5 {[%emt 0:10:23]} Kf7 {[%emt 0:02:25]} 23. Qf3 {[%emt 0:02:32]} Bg7 {[%emt 0:03:53]} 24. Bd2 {[%emt 0:00:14]} Rge8 {[%emt 0:02:14]} 25. Rae1 {[%emt 0:00:22]} Qd7 {[%emt 0:03:45]} 26. Nxg6 {[%emt 0:03:42]} Nxd5 {[%emt 0:00:29]} 27. Qxf5+ {[%emt 0:00:34]} Kg8 {[%emt 0:00:25]} 28. Rxe8+ {[%emt 0:00:24]} 1-0

[Event "36th Zalakaros Festival 2017"]
[Site "Zalakaros"]
[Date "2017.05.24"]
[Round "7"]
[White "Marosi, Levente"]
[Black "Secheres, Adrian-Simion"]
[Result "1-0"]
[ECO "C11"]
[WhiteElo "2286"]
[BlackElo "2309"]
[Annotator "NA"]
[PlyCount "75"]
[EventDate "2017.??.??"]
[EventType "swiss"]
[EventCountry "HUN"]
[SourceTitle "playchess.com"]
[Source "ChessBase"]
[SourceQuality "1"]
[TimeControl "40/5400+30:1800+30"]

1. e4 {[%emt 0:02:58]} e6 {[%emt 0:00:48]} 2. d4 {[%emt 0:00:12]} d5 {[%emt 0:00:10]} 3. Nc3 {[%emt 0:00:07]} Nf6 {[%emt 0:00:18]} 4. e5 {[%emt 0:00:16]} Nfd7 {[%emt 0:00:12]} 5. f4 {[%emt 0:00:11]} c5 {[%emt 0:00:16]} 6. Nf3 {[%emt 0:00:10]} Nc6 {[%emt 0:00:14]} 7. Be3 {[%emt 0:00:08]} Be7 {[%emt 0:00:24]} 8. Qd2 {[%emt 0:00:22]} O-O {[%emt 0:00:16]} 9. dxc5 {[%emt 0:00:09]} Bxc5 {[%emt 0:00:25]} 10. O-O-O {[%emt 0:00:21]} Qa5 {[%emt 0:00:16]} 11. a3 {[%emt 0:00:31]} Rd8 {[%emt 0:00:39]} 12. Kb1 {[%emt 0:00:44]} Rb8 {[%emt 0:04:58]} 13. Bxc5 {[%emt 0:20:19]} Nxc5 {[%emt 0:01:50]} 14. Qe3 {[%emt 0:01:46]} a6 {[%emt 0:10:39]} 15. h4 {[%emt 0:09:59]} Na4 $2 {[%emt 0:06:12]} (15... Nd7 $14) 16. Nxa4 $18 {[%emt 0:02:33]} Qxa4 {[%emt 0:00:02]} 17. Bd3 {[%emt 0:05:35]} b5 {[%emt 0:05:52]} 18. c3 {[%emt 0:12:13]} b4 {[%emt 0:08:34]} 19. cxb4 {[%emt 0:04:45]} Bd7 {[%emt 0:03:07]} 20. Rc1 {[%emt 0:07:06]} Rb7 {[%emt 0:21:45]} 21. Rc5 {[%emt 0:03:55]} Nxb4 {[%emt 0:10:20]} 22. axb4 {[%emt 0:01:04]} Qxb4 {[%emt 0:00:06]} 23. Rc2 {[%emt 0:08:22]} Ba4 {[%emt 0:00:36]} 24. Re2 {[%emt 0:03:24]} Rdb8 {[%emt 0:02:02]} 25. Rc1 {[%emt 0:01:40]} Bb3 {[%emt 0:02:12]} 26. Qc5 {[%emt 0:00:47]} Bc4 {[%emt 0:02:27]} 27. Rxc4 {[%emt 0:03:10]} dxc4 {[%emt 0:00:16]} 28. Qxc4 {[%emt 0:02:18]} Qa3 {[%emt 0:00:55]} 29. Qd4 {[%emt 0:00:16]} Rb4 {[%emt 0:01:45]} 30. Bc4 {[%emt 0:00:20]} Ra4 {[%emt 0:03:23]} 31. Rd2 {[%emt 0:00:51]} Qa1+ {[%emt 0:03:32]} 32. Kc2 {[%emt 0:00:01]} h6 {[%emt 0:00:11]} 33. b3 {[%emt 0:03:18]} Ra2+ {[%emt 0:05:03]} 34. Kd3 {[%emt 0:00:02]} Qb1+ {[%emt 0:00:37]} 35. Ke2 {[%emt 0:01:02]} Ra1 {[%emt 0:00:10]} 36. Kf2 {[%emt 0:00:06]} Qh1 {[%emt 0:01:15]} 37. Qd6 {[%emt 0:02:43]} Rf8 {[%emt 0:00:21]} 38. f5 {[%emt 0:02:14]} 1-0

[Event "36th Zalakaros Festival 2017"]
[Site "Zalakaros"]
[Date "2017.05.24"]
[Round "7"]
[White "Krstulovic, Alex"]
[Black "Sadhwani, Raunak"]
[Result "0-1"]
[ECO "E70"]
[WhiteElo "2280"]
[BlackElo "2298"]
[Annotator "NA"]
[PlyCount "98"]
[EventDate "2017.??.??"]
[EventType "swiss"]
[EventCountry "HUN"]
[SourceTitle "playchess.com"]
[Source "ChessBase"]
[SourceQuality "1"]
[TimeControl "40/5400+30:1800+30"]

1. d4 {[%emt 0:00:03]} Nf6 {[%emt 0:00:34]} 2. c4 {[%emt 0:00:07]} g6 {[%emt 0:00:04]} 3. Nc3 {[%emt 0:00:34]} Bg7 {[%emt 0:00:02]} 4. e4 {[%emt 0:01:37]} d6 {[%emt 0:00:05]} 5. Nge2 {[%emt 0:01:12]} O-O {[%emt 0:00:14]} 6. Ng3 {[%emt 0:00:06]} Nbd7 {[%emt 0:00:03]} 7. Be2 {[%emt 0:00:21]} h5 {[%emt 0:00:02]} 8. Be3 {[%emt 0:02:46]} c5 {[%emt 0:04:24]} 9. d5 {[%emt 0:01:29]} a6 {[%emt 0:14:30]} 10. a4 {[%emt 0:09:32]} Qb6 {[%emt 0:02:53]} 11. a5 Qc7 {[%emt 0:00:25]} 12. Nf1 {[%emt 0:09:12]} b6 {[%emt 0:01:42]} 13. axb6 {[%emt 0:00:58]} Qxb6 {[%emt 0:00:10]} 14. Ra2 {[%emt 0:01:11]} Ng4 $14 {[%emt 0:06:28]} 15. Bxg4 {[%emt 0:03:06]} hxg4 {[%emt 0:00:10]} 16. Nd2 {[%emt 0:02:23]} Ne5 {[%emt 0:01:23]} 17. Qc2 {[%emt 0:22:56]} f5 {[%emt 0:13:59]} 18. Ne2 {[%emt 0:09:33]} fxe4 {[%emt 0:00:36]} 19. O-O {[%emt 0:00:37]} Nd3 {[%emt 0:06:07]} 20. Nxe4 {[%emt 0:05:39]} Nb4 {[%emt 0:00:07]} 21. Qb3 {[%emt 0:00:02]} Nxd5 {[%emt 0:00:44]} 22. Qxb6 {[%emt 0:00:05]} Nxb6 {[%emt 0:00:07]} 23. b3 {[%emt 0:07:10]} Bf5 {[%emt 0:04:01]} 24. N4c3 {[%emt 0:00:44]} Rfb8 {[%emt 0:01:12]} 25. Bd2 {[%emt 0:03:55]} Nd7 {[%emt 0:03:29]} 26. Nc1 {[%emt 0:00:17]} Ne5 {[%emt 0:01:01]} 27. Nd5 {[%emt 0:01:53]} Rb7 {[%emt 0:02:03]} 28. Re1 {[%emt 0:02:27]} Nc6 {[%emt 0:01:12]} 29. Nc3 {[%emt 0:05:31]} Nd4 {[%emt 0:01:43]} 30. Nb5 {[%emt 0:00:03]} Nxb5 {[%emt 0:03:56]} 31. cxb5 {[%emt 0:00:07]} Kf7 {[%emt 0:00:42]} 32. bxa6 {[%emt 0:01:09]} Rba7 {[%emt 0:00:15]} 33. b4 {[%emt 0:02:32]} cxb4 {[%emt 0:00:16]} 34. Bxb4 {[%emt 0:00:05]} Rxa6 {[%emt 0:00:04]} 35. Rae2 {[%emt 0:01:50]} Bf6 {[%emt 0:00:09]} 36. Bd2 {[%emt 0:02:07]} Rb8 {[%emt 0:00:45]} 37. f4 {[%emt 0:02:02]} gxf3 {[%emt 0:00:09]} 38. gxf3 {[%emt 0:00:01]} Bh4 {[%emt 0:00:48]} 39. Rf1 {[%emt 0:01:06]} Rb2 {[%emt 0:00:32]} 40. Be1 {[%emt 0:00:00]} Bf6 {[%emt 0:00:22]} 41. Rxb2 {[%emt 0:10:07]} Bxb2 {[%emt 0:00:03]} 42. Bg3 {[%emt 0:00:24]} e5 {[%emt 0:03:36]} 43. Ne2 {[%emt 0:13:20]} Rc6 {[%emt 0:00:14]} 44. f4 {[%emt 0:00:54]} Rc2 {[%emt 0:00:36]} 45. Re1 {[%emt 0:01:51]} Bd3 {[%emt 0:00:36]} 46. fxe5 {[%emt 0:03:19]} Rxe2 {[%emt 0:00:13]} 47. Rxe2 {[%emt 0:04:07]} Bxe2 {[%emt 0:00:03]} 48. exd6 {[%emt 0:00:07]} Ke6 {[%emt 0:00:03]} 49. Kf2 {[%emt 0:00:08]} Bh5 {[%emt 0:00:05]} 0-1

[Event "36th Zalakaros Festival 2017"]
[Site "Zalakaros"]
[Date "2017.05.24"]
[Round "7"]
[White "Szalanczy, Emil"]
[Black "Chovan, Milan"]
[Result "0-1"]
[ECO "A30"]
[WhiteElo "2230"]
[BlackElo "2288"]
[Annotator "NA"]
[PlyCount "88"]
[EventDate "2017.??.??"]
[EventType "swiss"]
[EventCountry "HUN"]
[SourceTitle "playchess.com"]
[Source "ChessBase"]
[SourceQuality "1"]
[TimeControl "40/5400+30:1800+30"]

1. c4 {[%emt 0:01:18]} c5 {[%emt 0:00:39]} 2. g3 {[%emt 0:01:01]} Nf6 {[%emt 0:00:11]} 3. Bg2 {[%emt 0:00:11]} d5 {[%emt 0:00:09]} 4. Nf3 {[%emt 0:01:10]} Nc6 {[%emt 0:05:14]} 5. O-O {[%emt 0:01:05]} e5 {[%emt 0:09:17]} 6. d3 {[%emt 0:01:18] LiveBook: 64 Games} Be7 {[%emt 0:01:59]} 7. Nc3 {[%emt 0:01:53]} d4 {[%emt 0:00:16]} 8. Na4 {[%emt 0:00:09]} h6 {[%emt 0:01:15]} 9. e4 {[%emt 0:01:21]} Be6 {[%emt 0:01:53]} 10. Kh1 {[%emt 0:00:47]} Nd7 {[%emt 0:00:29]} 11. Ng1 {[%emt 0:00:45]} f6 {[%emt 0:07:47]} 12. Bh3 {[%emt 0:04:40]} Bf7 {[%emt 0:00:02]} 13. f4 {[%emt 0:02:43]} Qc7 {[%emt 0:04:39]} 14. Bd2 {[%emt 0:04:51]} Bd6 {[%emt 0:04:23]} 15. f5 {[%emt 0:08:14]} b5 $11 {[%emt 0:11:06]} 16. cxb5 {[%emt 0:01:55]} Nb4 {[%emt 0:02:06]} 17. Bxb4 {[%emt 0:01:06]} cxb4 {[%emt 0:00:02]} 18. Rc1 {[%emt 0:00:17]} Qa5 {[%emt 0:02:07]} 19. b3 {[%emt 0:03:08]} Qxb5 {[%emt 0:02:24]} 20. Nf3 {[%emt 0:00:50]} O-O {[%emt 0:03:02]} 21. Nb2 {[%emt 0:09:46]} Rfc8 {[%emt 0:00:38]} 22. Nc4 {[%emt 0:01:45]} Bf8 {[%emt 0:00:50]} 23. Nh4 {[%emt 0:04:10]} a5 {[%emt 0:01:14]} 24. Ng6 {[%emt 0:03:23]} Rc6 {[%emt 0:00:55]} 25. Bg4 {[%emt 0:02:03]} Rca6 {[%emt 0:00:41]} 26. Nb2 {[%emt 0:02:34]} Nc5 {[%emt 0:01:08]} 27. Bh5 {[%emt 0:01:46]} Bd6 {[%emt 0:04:08]} 28. Rf2 {[%emt 0:04:58]} a4 {[%emt 0:01:17]} 29. Rxc5 {[%emt 0:00:26]} Bxc5 {[%emt 0:00:11]} 30. Nxa4 {[%emt 0:00:02]} Bd6 {[%emt 0:01:13]} 31. Rc2 {[%emt 0:00:38]} Rc6 {[%emt 0:00:20]} 32. Rxc6 {[%emt 0:09:31]} Qxc6 {[%emt 0:00:02]} 33. Kg2 {[%emt 0:01:44]} Rc8 {[%emt 0:00:20]} 34. Kh3 {[%emt 0:00:31]} Qc2 {[%emt 0:03:01]} 35. Qf3 {[%emt 0:00:47]} Qxa2 {[%emt 0:05:00]} 36. Nb6 {[%emt 0:00:15]} Rc2 {[%emt 0:02:15]} 37. Qh1 {[%emt 0:06:31]} Qxb3 {[%emt 0:03:06]} 38. Nd5 {[%emt 0:03:32]} Qa2 {[%emt 0:01:51]} 39. Nge7+ {[%emt 0:04:36]} Bxe7 {[%emt 0:00:07]} 40. Nxe7+ {[%emt 0:00:00]} Kf8 {[%emt 0:00:39]} 41. Ng6+ {[%emt 0:03:05]} Ke8 {[%emt 0:00:01]} 42. Bd1 {[%emt 0:05:29]} Rd2 {[%emt 0:00:08]} 43. Bf3 {[%emt 0:06:20]} b3 {[%emt 0:00:24]} 44. Bd1 {[%emt 0:06:01]} Qb1 {[%emt 0:00:52]} 0-1

[Event "36th Zalakaros Festival 2017"]
[Site "Zalakaros"]
[Date "2017.05.24"]
[Round "7"]
[White "Hardicsay, Peter"]
[Black "Risting, Eivind Olav"]
[Result "1/2-1/2"]
[ECO "A14"]
[WhiteElo "2218"]
[BlackElo "2297"]
[Annotator "NA"]
[PlyCount "47"]
[EventDate "2017.??.??"]
[EventType "swiss"]
[EventCountry "HUN"]
[SourceTitle "playchess.com"]
[Source "ChessBase"]
[SourceQuality "1"]
[TimeControl "40/5400+30:1800+30"]

1. Nf3 {[%emt 0:00:08]} Nf6 {[%emt 0:00:42]} 2. c4 {[%emt 0:00:33]} e6 {[%emt 0:00:24]} 3. g3 {[%emt 0:00:18]} d5 {[%emt 0:00:24]} 4. Bg2 {[%emt 0:00:07]} Be7 {[%emt 0:00:11]} 5. O-O {[%emt 0:00:28]} O-O {[%emt 0:00:30]} 6. d4 {[%emt 0:00:32]} dxc4 {[%emt 0:01:18]} 7. Qa4 {[%emt 0:02:06]} a6 {[%emt 0:01:55]} 8. Qxc4 {[%emt 0:02:19]} b5 {[%emt 0:00:10]} 9. Qc2 {[%emt 0:00:09]} Bb7 {[%emt 0:02:41]} 10. Bf4 {[%emt 0:05:29]} Nc6 {[%emt 0:00:00]} 11. Rd1 {[%emt 0:00:57]} Rc8 {[%emt 0:00:00] LiveBook: 5 Games} 12. a3 {[%emt 0:02:53]} Na5 {[%emt 0:09:05]} 13. Nc3 {[%emt 0:02:31]} Bd6 {[%emt 0:09:24]} 14. Ne5 $11 {[%emt 0:12:37]} Bxg2 {[%emt 0:03:44]} 15. Kxg2 {[%emt 0:00:14]} Nd5 {[%emt 0:10:08]} 16. Nxd5 {[%emt 0:22:44]} exd5 {[%emt 0:00:06]} 17. b3 {[%emt 0:10:31]} Qe8 {[%emt 0:12:38]} 18. Qb2 {[%emt 0:17:48]} Nb7 {[%emt 0:09:04]} 19. Rac1 {[%emt 0:03:01]} Bxe5 {[%emt 0:01:59]} 20. dxe5 {[%emt 0:03:32]} Qe6 {[%emt 0:06:25]} 21. Qd4 {[%emt 0:01:35]} c6 {[%emt 0:13:19]} 22. b4 {[%emt 0:01:23]} Nd8 23. e4 dxe4 24. Qxe4 1/2-1/2

[Event "36th Zalakaros Festival 2017"]
[Site "Zalakaros"]
[Date "2017.05.24"]
[Round "7"]
[White "Jakab, Bela"]
[Black "Blohberger, Felix"]
[Result "0-1"]
[ECO "C11"]
[WhiteElo "2216"]
[BlackElo "2319"]
[Annotator "NA"]
[PlyCount "84"]
[EventDate "2017.??.??"]
[EventType "swiss"]
[EventCountry "HUN"]
[SourceTitle "playchess.com"]
[Source "ChessBase"]
[SourceQuality "1"]
[TimeControl "40/5400+30:1800+30"]

1. e4 {[%emt 0:00:04]} e6 {[%emt 0:00:48]} 2. d4 {[%emt 0:00:06]} d5 {[%emt 0:00:05]} 3. Nc3 {[%emt 0:00:04]} Nf6 {[%emt 0:00:06]} 4. e5 {[%emt 0:00:05]} Nfd7 {[%emt 0:00:04]} 5. f4 {[%emt 0:00:06]} c5 {[%emt 0:00:05]} 6. Nf3 {[%emt 0:00:05]} Nc6 {[%emt 0:00:02]} 7. Be3 {[%emt 0:00:09]} a6 {[%emt 0:00:07]} 8. Qd2 {[%emt 0:00:53] LiveBook: 1922 Games} b5 {[%emt 0:00:11]} 9. a3 {[%emt 0:00:20]} Qa5 {[%emt 0:00:07]} 10. dxc5 {[%emt 0:10:19]} Bxc5 {[%emt 0:00:29]} 11. Bxc5 {[%emt 0:01:20]} Nxc5 {[%emt 0:00:04]} 12. Bd3 {[%emt 0:00:51]} O-O {[%emt 0:13:26]} 13. O-O {[%emt 0:03:41]} Qb6 {[%emt 0:02:47]} 14. Kh1 {[%emt 0:02:34]} b4 {[%emt 0:20:41]} 15. Ne2 $15 {[%emt 0:13:41]} a5 {[%emt 0:04:26]} 16. Qe3 {[%emt 0:09:54]} Ba6 {[%emt 0:16:38]} 17. Bxh7+ {[%emt 0:06:37]} Kxh7 {[%emt 0:00:07]} 18. Ng5+ {[%emt 0:00:04]} Kg8 {[%emt 0:00:17]} 19. Qh3 {[%emt 0:00:06]} Rfe8 {[%emt 0:06:25]} 20. f5 {[%emt 0:01:09]} Nxe5 {[%emt 0:04:43]} 21. f6 {[%emt 0:04:01]} gxf6 {[%emt 0:00:54]} 22. Rxf6 {[%emt 0:00:06]} Kf8 {[%emt 0:01:59]} 23. Nf4 {[%emt 0:13:14]} Rad8 {[%emt 0:04:39]} 24. Ng6+ {[%emt 0:22:52]} Kg7 {[%emt 0:00:06]} 25. Rf2 {[%emt 0:00:06]} f5 {[%emt 0:14:45]} 26. Nxe5 {[%emt 0:00:38]} Rh8 {[%emt 0:01:29]} 27. Qg3 {[%emt 0:01:01]} Kf6 {[%emt 0:00:31]} 28. Nef7 {[%emt 0:01:03]} Qb8 {[%emt 0:01:04]} 29. Qxb8 {[%emt 0:02:04]} Rxb8 {[%emt 0:00:06]} 30. Nxh8 {[%emt 0:00:04]} Kxg5 {[%emt 0:01:15]} 31. axb4 {[%emt 0:00:26]} Ne4 {[%emt 0:03:00]} 32. Rf3 {[%emt 0:00:37]} Rxh8 {[%emt 0:00:24]} 33. Rxa5 {[%emt 0:00:09]} Be2 {[%emt 0:00:24]} 34. Rfa3 {[%emt 0:00:56]} Kf4 {[%emt 0:01:26]} 35. Ra8 {[%emt 0:01:00]} Rh7 {[%emt 0:00:45]} 36. R3a7 {[%emt 0:00:39]} Rh6 {[%emt 0:00:36]} 37. Rb8 {[%emt 0:02:00]} Ke3 {[%emt 0:00:53]} 38. b5 {[%emt 0:00:31]} Kf2 {[%emt 0:00:57]} 39. Rg7 {[%emt 0:00:54]} f4 {[%emt 0:00:52]} 40. h3 {[%emt 0:00:00]} Ng3+ {[%emt 0:01:16]} 41. Kh2 {[%emt 0:01:02]} Nf1+ {[%emt 0:00:11]} 42. Kh1 {[%emt 0:00:06]} Rxh3+ {[%emt 0:00:08]} 0-1

[Event "36th Zalakaros Festival 2017"]
[Site "Zalakaros"]
[Date "2017.05.25"]
[Round "8"]
[White "Meszaros, Tamas"]
[Black "Rahul Srivatshav P"]
[Result "1-0"]
[ECO "C03"]
[WhiteElo "2401"]
[BlackElo "2303"]
[Annotator "NA"]
[PlyCount "113"]
[EventDate "2017.??.??"]
[EventType "swiss"]
[EventCountry "HUN"]
[SourceTitle "playchess.com"]
[Source "ChessBase"]
[SourceQuality "1"]
[TimeControl "40/5400+30:1800+30"]

1. e4 {[%emt 0:00:06]} e6 {[%emt 0:01:07]} 2. d4 {[%emt 0:01:40]} d5 {[%emt 0:00:12]} 3. Nd2 {[%emt 0:00:05]} Be7 {[%emt 0:00:08]} 4. Ngf3 {[%emt 0:01:15]} Nf6 {[%emt 0:00:14]} 5. e5 {[%emt 0:00:20]} Nfd7 {[%emt 0:00:16]} 6. Bd3 {[%emt 0:00:22]} c5 {[%emt 0:00:08]} 7. c3 {[%emt 0:00:06]} Nc6 {[%emt 0:00:09]} 8. O-O {[%emt 0:00:07]} g5 {[%emt 0:00:05]} 9. dxc5 {[%emt 0:00:47]} g4 {[%emt 0:00:08]} 10. Nd4 {[%emt 0:00:18]} Ndxe5 {[%emt 0:00:47]} 11. Bb5 {[%emt 0:06:45]} Bd7 {[%emt 0:01:16]} 12. N2b3 {[%emt 0:18:17]} h5 {[%emt 0:00:14]} 13. f4 {[%emt 0:10:50]} gxf3 {[%emt 0:20:12]} 14. Nxf3 {[%emt 0:01:14]} Qc7 {[%emt 0:11:09]} 15. Bf4 {[%emt 0:11:20]} Nxf3+ {[%emt 0:05:43]} 16. Qxf3 {[%emt 0:00:15]} e5 {[%emt 0:00:09]} 17. Bg3 {[%emt 0:15:01]} Be6 {[%emt 0:02:13]} 18. Rae1 {[%emt 0:16:46]} f6 {[%emt 0:01:11]} 19. Nd4 {[%emt 0:01:03]} Bd7 {[%emt 0:17:14]} 20. Qxd5 {[%emt 0:02:40]} Nxd4 {[%emt 0:03:16]} 21. Bxd7+ {[%emt 0:05:07]} Qxd7 {[%emt 0:00:01]} 22. Qxd7+ {[%emt 0:00:15]} Kxd7 {[%emt 0:00:04]} 23. cxd4 {[%emt 0:00:04]} exd4 {[%emt 0:00:10]} 24. Rf5 {[%emt 0:02:39]} a5 {[%emt 0:03:28]} 25. Bf2 {[%emt 0:03:24]} Rae8 {[%emt 0:03:15]} 26. Bxd4 {[%emt 0:01:08]} Bxc5 {[%emt 0:00:20]} 27. Rd5+ {[%emt 0:00:47]} Bd6 {[%emt 0:00:01]} 28. Rd1 {[%emt 0:00:28]} Kc6 {[%emt 0:02:10]} 29. Rxa5 {[%emt 0:00:47]} Re2 {[%emt 0:02:17]} 30. Rc1+ {[%emt 0:00:04]} Kd7 {[%emt 0:00:18]} 31. Rb5 {[%emt 0:00:39]} Rg8 {[%emt 0:01:03]} 32. Rxb7+ {[%emt 0:00:04]} Ke6 {[%emt 0:00:07]} 33. Bf2 {[%emt 0:00:14]} Be5 {[%emt 0:01:32]} 34. Rb6+ {[%emt 0:01:29]} Kf5 {[%emt 0:00:18]} 35. Rf1 {[%emt 0:00:26]} Ke4 {[%emt 0:02:14]} 36. Rb4+ {[%emt 0:00:11]} Kd3 {[%emt 0:00:01]} 37. Rd1+ {[%emt 0:00:38]} Kc2 {[%emt 0:00:34]} 38. Rd5 {[%emt 0:00:12]} Kb1 {[%emt 0:01:51]} 39. a4 {[%emt 0:01:05]} Rc8 {[%emt 0:00:09]} 40. Rd1+ {[%emt 0:00:00]} Ka2 {[%emt 0:00:04]} 41. Rh4 {[%emt 0:15:02]} Rcc2 {[%emt 0:02:35]} 42. Rf1 {[%emt 0:00:28]} Rcd2 {[%emt 0:04:09]} 43. b4 {[%emt 0:04:13]} Bb8 {[%emt 0:01:07]} 44. g3 {[%emt 0:00:50]} Kb3 {[%emt 0:01:27]} 45. a5 {[%emt 0:02:32]} f5 {[%emt 0:01:10]} 46. a6 {[%emt 0:02:34]} Ra2 {[%emt 0:00:16]} 47. b5 {[%emt 0:02:04]} Red2 {[%emt 0:01:26]} 48. Rxh5 {[%emt 0:00:26]} f4 {[%emt 0:00:26]} 49. gxf4 {[%emt 0:01:27]} Bxf4 {[%emt 0:00:33]} 50. a7 {[%emt 0:00:25]} Rd7 {[%emt 0:01:24]} 51. Rh3+ {[%emt 0:01:00]} Kc2 {[%emt 0:00:21]} 52. Rh8 {[%emt 0:00:09]} Rg7+ {[%emt 0:01:04]} 53. Kh1 {[%emt 0:00:04]} Kd3 {[%emt 0:00:16]} 54. a8=Q {[%emt 0:00:36]} Rxa8 {[%emt 0:00:02]} 55. Rxa8 {[%emt 0:00:06]} Ke2 {[%emt 0:00:08]} 56. Raa1 {[%emt 0:00:06]} Rh7 {[%emt 0:00:03]} 57. Bg1 {[%emt 0:00:20]} 1-0